fUSD/lending_fUSD_20260112
["ID","MTS","AMOUNT","RATE_DAILY","PERIOD"]
[401432152,1768207847920,-150.00000001,0.00018,2]
[401432153,1768207847931,-152.37123583,0.00018,2]
[401432154,1768207847941,-155.70825827,0.00018,2]
[401432155,1768207847950,-248.59699216,0.00018,2]
[401432156,1768207847960,-154.70586823,0.00018,2]
[401432157,1768207847970,-152.34445976,0.00018,2]
[401432158,1768207847981,-3693948.97862862,0.00018,2]
[401432159,1768207847991,-2703656.14939107,0.00018,2]
[401432160,1768207848000,-500.0,0.00018,2]
[401432161,1768207848010,-500.0,0.00018,2]
[401432162,1768207848019,-500.0,0.00018,2]
[401432163,1768207848030,-500.0,0.00018,2]
[401432164,1768207848039,-500.0,0.00018,2]
[401432165,1768207848048,-500.0,0.00018,2]
[401432166,1768207848058,-500.0,0.00018,2]
[401432167,1768207848068,-500.0,0.00018,2]
[401432168,1768207848078,-500.0,0.00018,2]
[401432169,1768207848088,-500.0,0.00018,2]
[401432170,1768207848097,-500.0,0.00018,2]
[401432171,1768207848107,-500.0,0.00018,2]
[401432172,1768207848116,-500.0,0.00018,2]
[401432173,1768207848125,-500.0,0.00018,2]
[401432174,1768207848135,-500.0,0.00018,2]
[401432175,1768207848144,-500.0,0.00018,2]
[401432176,1768207848153,-500.0,0.00018,2]
[401432177,1768207848162,-500.0,0.00018,2]
[401432178,1768207848171,-500.0,0.00018,2]
[401432179,1768207848181,-500.0,0.00018,2]
[401432180,1768207848190,-494.5,0.00018,2]
[401432181,1768207848200,-818662.58229667,0.00018,2]
[401432182,1768207849148,-58.45117482,0.00018,2]
[401432183,1768207849515,-1.7e-07,0.00018,2]
[401432184,1768207850245,-151.0,0.00014748,2]
[401432185,1768207850255,-137.62808416,0.00014748,2]
[401432186,1768207850305,-13.37191584,0.00014748,2]
[401432187,1768207850315,-348.0,0.00017178,2]
[401432188,1768207850324,-90438.62808415,0.00018,2]
[401432189,1768207850335,-281.11717101,0.00018,2]
[401432190,1768207850346,-587.23805486,0.00018,2]
[401432191,1768207850490,-31943.59796435,0.00018,2]
[401432192,1768207850502,-812.07710212,0.00018,2]
[401432193,1768207850524,-641.61867514,0.00018,2]
[401432194,1768207850540,-3960.3143155,0.00018,2]
[401432195,1768207850551,-300.23409272,0.00018,2]
[401432196,1768207850562,-9417.91271213,0.00018,2]
[401432197,1768207858466,293.85316212,0.00011595,2]
[401432198,1768207863262,500.0,0.00011595,2]
[401432199,1768207863302,500.0,0.00011595,2]
[401432200,1768207863347,500.0,0.00011595,2]
[401432201,1768207863387,500.0,0.00011595,2]
[401432202,1768207863433,500.0,0.00011595,2]
[401432203,1768207863473,500.0,0.00011595,2]
[401432204,1768207863517,500.0,0.00011595,2]
[401432205,1768207863560,500.0,0.00011595,2]
[401432206,1768207863600,500.0,0.00011595,2]
[401432207,1768207863645,500.0,0.00011595,2]
[401432208,1768207863687,320.48957606,0.00011595,2]
[401432209,1768207863713,179.51042394,0.00011595,2]
[401432210,1768207863761,500.0,0.00011595,2]
[401432211,1768207863801,500.0,0.00011595,2]
[401432212,1768207863845,500.0,0.00011595,2]
[401432213,1768207863887,500.0,0.00011595,2]
[401432214,1768207863929,500.0,0.00011595,2]
[401432215,1768207863976,500.0,0.00011595,2]
[401432216,1768207864021,500.0,0.00011595,2]
[401432217,1768207864061,500.0,0.00011595,2]
[401432218,1768207864108,500.0,0.00011595,2]
[401432219,1768207864153,500.0,0.00011595,2]
[401432220,1768207864218,500.0,0.00011595,2]
[401432221,1768207864266,500.0,0.00011595,2]
[401432222,1768207864310,500.0,0.00011595,2]
[401432223,1768207864357,500.0,0.00011595,2]
[401432224,1768207864397,500.0,0.00011595,2]
[401432225,1768207864437,500.0,0.00011595,2]
[401432226,1768207864481,500.0,0.00011595,2]
[401432227,1768207864516,500.0,0.00011595,2]
[401432228,1768207864563,500.0,0.00011595,2]
[401432229,1768207864603,320.49957606,0.00011595,2]
[401432230,1768207864631,179.50042394,0.00011595,2]
[401432231,1768207864680,585.69418126,0.00011595,2]
[401432232,1768207864719,500.0,0.00011595,2]
[401432233,1768207864760,500.0,0.00011595,2]
[401432234,1768207864804,500.0,0.00011595,2]
[401432235,1768207864854,500.0,0.00011595,2]
[401432236,1768207864923,500.0,0.00011595,2]
[401432237,1768207864976,500.0,0.00011595,2]
[401432238,1768207865030,500.0,0.00011595,2]
[401432239,1768207865074,500.0,0.00011595,2]
[401432240,1768207865117,500.0,0.00011595,2]
[401432241,1768207865174,500.0,0.00011595,2]
[401432242,1768207865233,500.0,0.00011595,2]
[401432243,1768207871887,500.0,0.00011595,2]
[401432249,1768207955727,500.0,0.00011595,2]
[401432250,1768207955781,500.0,0.00011595,2]
[401432251,1768207955832,500.0,0.00011595,2]
[401432252,1768207955895,500.0,0.00011595,2]
[401432253,1768207955942,500.0,0.00011595,2]
[401432254,1768207955990,500.0,0.00011595,2]
[401432255,1768207956063,500.0,0.00011595,2]
[401432256,1768207956110,500.0,0.00011595,2]
[401432257,1768207956160,500.0,0.00011595,2]
[401432258,1768207956208,500.0,0.00011595,2]
[401432259,1768207956255,500.0,0.00011595,2]
[401432260,1768207956308,500.0,0.00011595,2]
[401432261,1768207956361,500.0,0.00011595,2]
[401432262,1768207956404,585.69418126,0.00011595,2]
[401432263,1768207956466,500.0,0.00011595,2]
[401432264,1768207956510,500.0,0.00011595,2]
[401432265,1768207956552,500.0,0.00011595,2]
[401432266,1768207956600,500.0,0.00011595,2]
[401432267,1768207956646,500.0,0.00011595,2]
[401432268,1768207956685,414.31581874,0.00011595,2]
[401432269,1768207956712,85.68418126,0.00011595,2]
[401432270,1768207956758,500.0,0.00011595,2]
[401432271,1768207990577,150.0,1e-05,2]
[401432274,1768208095540,-264.22790605,0.00011596,2]
[401432275,1768208095568,-3678.16360024,0.00011596,2]
[401432278,1768208102366,-2115.22698742,0.00011596,2]
[401432279,1768208102395,-300.0,0.00011694,2]
[401432280,1768208102425,-300.0,0.00011694,2]
[401432281,1768208102458,-300.0,0.00011694,2]
[401432282,1768208102487,-1200.0,0.00011694,2]
[401432283,1768208102527,-369.55602516,0.00011695,2]
[401432284,1768208105423,-830.44397484,0.00011695,2]
[401432285,1768208105452,-150.0,0.00011695,2]
[401432286,1768208105482,-169.54111492,0.00011695,2]
[401432287,1768208105858,-500.0,0.00011695,2]
[401432288,1768208105891,-500.0,0.00011695,2]
[401432289,1768208105921,-296.87181638,0.00011695,2]
[401432290,1768208105955,-500.0,0.00011695,2]
[401432291,1768208105988,-500.0,0.00011695,2]
[401432292,1768208106019,-500.0,0.00011695,2]
[401432293,1768208106051,-500.0,0.00011695,2]
[401432294,1768208106084,-474.98982022,0.00011695,2]
[401432295,1768208107215,-156.31654728,0.00011695,2]
[401432296,1768208161317,300.0,0.00011695,2]
[401432300,1768208221385,300.0,0.00011695,2]
[401432301,1768208221460,150.0,0.00011695,2]
[401432302,1768208222411,150.0,0.00011695,2]
[401432303,1768208242755,1266.97377723,0.00011596,2]
[401432304,1768208245502,7520.40312821,0.00011596,2]
[401432305,1768208245525,9501.95414536,0.00011596,2]
[401432306,1768208281350,300.0,0.00011695,2]
[401432307,1768208295735,1213.267041,0.00011016,2]
[401432308,1768208296105,1200.0,0.00011695,2]
[401432309,1768208310023,231.19941782,0.00011596,2]
[401432310,1768208314057,999.0,0.00012157,3]
[401432311,1768208316081,1502.420472,0.00011016,2]
[401432312,1768208401206,300.0,0.00011695,2]
[401432313,1768208401249,300.0,0.00011695,2]
[401432314,1768208401327,1200.0,0.00011695,2]
[401432315,1768208402379,150.0,0.00011695,2]
[401432316,1768208404041,246.0,0.00011696,2]
[401432317,1768208418128,3357.12306918,0.00011596,2]
[401432318,1768208418155,8834.95247201,0.00011596,2]
[401432319,1768208493433,1165.05752799,0.00011462,2]
[401432320,1768208493456,1686.56847201,0.00011462,2]
[401432321,1768208493503,188.141,0.00011462,2]
[401432322,1768208496275,2902.4754,0.00011596,2]
[401432323,1768208515565,394.746275,0.00011016,2]
[401432324,1768208525568,200.0,0.00011696,2]
[401432325,1768208528905,500.0,0.00011696,2]
[401432326,1768208530278,151.0,0.00011696,2]
[401432327,1768208530864,151.0,0.00011696,2]
[401432328,1768208532206,151.0,0.00011696,2]
[401432329,1768208532373,151.0,0.00011696,2]
[401432330,1768208532939,151.0,0.00011696,2]
[401432331,1768208533595,151.0,0.00011696,2]
[401432332,1768208534711,151.0,0.00011696,2]
[401432333,1768208535398,151.0,0.00011696,2]
[401432334,1768208535984,151.0,0.00011696,2]
[401432335,1768208536462,293.83522912,0.00011696,2]
[401432336,1768208536591,151.0,0.00011696,2]
[401432337,1768208537725,151.0,0.00011696,2]
[401432338,1768208538368,151.0,0.00011696,2]
[401432339,1768208538997,151.0,0.00011696,2]
[401432340,1768208539165,200.0,0.00011696,2]
[401432341,1768208547363,151.0,0.00011696,2]
[401432342,1768208548015,151.0,0.00011696,2]
[401432343,1768208548654,151.0,0.00011696,2]
[401432344,1768208549276,151.0,0.00011696,2]
[401432345,1768208549927,151.0,0.00011696,2]
[401432346,1768208550604,151.0,0.00011696,2]
[401432347,1768208551221,151.0,0.00011696,2]
[401432348,1768208551897,151.0,0.00011696,2]
[401432349,1768208552497,151.0,0.00011696,2]
[401432350,1768208553495,151.0,0.00011696,2]
[401432351,1768208553738,151.0,0.00011696,2]
[401432352,1768208554379,10.24362387,0.00011696,2]
[401432353,1768208554403,140.75637613,0.00011696,2]
[401432354,1768208554977,151.0,0.00011696,2]
[401432355,1768208555619,151.0,0.00011696,2]
[401432356,1768208556300,151.0,0.00011696,2]
[401432357,1768208556915,151.0,0.00011696,2]
[401432358,1768208557515,151.0,0.00011696,2]
[401432359,1768208558151,151.0,0.00011696,2]
[401432360,1768208558782,151.0,0.00011696,2]
[401432361,1768208559396,151.0,0.00011696,2]
[401432362,1768208581344,300.0,0.00011695,2]
[401432363,1768208582367,150.0,0.00011695,2]
[401432364,1768208594986,202.29949054,0.00011596,2]
[401432365,1768208632795,7998.95413333,0.00011596,2]
[401432366,1768208632822,7321.16741282,0.00011596,2]
[401432367,1768208641301,300.0,0.00011695,2]
[401432368,1768208701537,1200.0,0.00011695,2]
[401432369,1768208701873,300.0,0.00011695,2]
[401432370,1768208725284,161.58692258,0.00011596,2]
[401432371,1768208761647,300.0,0.00011695,2]
[401432372,1768208762661,150.0,0.00011695,2]
[401432373,1768208773034,167.42,9.725e-05,2]
[401432374,1768208805143,-250.0,0.00011696,2]
[401432375,1768208805164,-93.51816361,0.00011696,2]
[401432376,1768208821443,300.0,0.00011695,2]
[401432377,1768208828084,-177.03281994,0.00011696,2]
[401432378,1768208828104,-195.0,0.00011696,2]
[401432379,1768208828127,-300.0,0.00011696,2]
[401432380,1768208828150,-299.70035839,0.00011696,2]
[401432381,1768208828172,-2995.0324841,0.00011696,2]
[401432382,1768208829107,-566.88869839,0.00011696,2]
[401432383,1768208837530,264.77942858,0.00011596,2]
[401432384,1768208851246,151.0,0.00011696,2]
[401432385,1768208851896,151.0,0.00011696,2]
[401432386,1768208852508,151.0,0.00011696,2]
[401432387,1768208853116,151.0,0.00011696,2]
[401432388,1768208853764,151.0,0.00011696,2]
[401432389,1768208854362,151.0,0.00011696,2]
[401432390,1768208854961,151.0,0.00011696,2]
[401432391,1768208855598,151.0,0.00011696,2]
[401432392,1768208856232,151.0,0.00011696,2]
[401432393,1768208856836,151.0,0.00011696,2]
[401432394,1768208857446,151.0,0.00011696,2]
[401432395,1768208858896,151.0,0.00011696,2]
[401432396,1768208859271,151.0,0.00011696,2]
[401432397,1768208875483,177.01205424,0.00011596,2]
[401432403,1768208932229,5016.2115946,0.00011596,2]
[401432404,1768208932260,5956.65639248,0.00011596,2]
[401432407,1768208941355,300.0,0.00011695,2]
[401432408,1768208942799,150.0,0.00011695,2]
[401432410,1768208957782,-2465.496348,0.00011696,2]
[401432411,1768208971146,-1561.134708,0.00011696,2]
[401432412,1768208991833,-616.5331254,0.00011696,2]
[401432413,1768208994418,-151.39680068,0.00011696,2]
[401432414,1768208997347,-186.83759342,0.00011696,2]
[401432415,1768208998843,-178.18123788,0.00011696,2]
[401432416,1768209000110,3593.35360752,0.00011596,2]
[401432417,1768209000141,10000.01,0.00011596,2]
[401432418,1768209000172,10000.01,0.00011596,2]
[401432419,1768209000201,10000.01,0.00011596,2]
[401432420,1768209000231,10000.01,0.00011596,2]
[401432421,1768209000258,10000.01,0.00011596,2]
[401432422,1768209000284,10000.01,0.00011596,2]
[401432423,1768209000309,10000.01,0.00011596,2]
[401432424,1768209000336,10000.01,0.00011596,2]
[401432425,1768209000979,-184.72499494,0.00011596,2]
[401432426,1768209005529,-245.0,0.00011596,2]
[401432427,1768209005558,-282.97186034,0.00011596,2]
[401432428,1768209007312,-209.66521579,0.00011596,2]
[401432430,1768209009842,-291.60566457,0.00011596,2]
[401432431,1768209011198,315.0,0.00027397,120]
[401432432,1768209013155,-252.177763,0.00011596,2]
[401432433,1768209015262,-189.01438501,0.00011596,2]
[401432434,1768209018414,-245.23471979,0.00011596,2]
[401432435,1768209022292,-168.67399136,0.00011596,2]
[401432437,1768209024466,-300.0,0.00011545,2]
[401432438,1768209026087,-311.81946759,0.00011545,2]
[401432439,1768209030260,-348.47656102,0.00011545,2]
[401432440,1768209031919,-159.25570802,0.00011545,2]
[401432445,1768209032133,-13696.33105913,0.00011545,2]
[401432446,1768209032143,-456171.55636231,0.00011596,2]
[401432447,1768209032802,-10664.15318338,0.00011596,2]
[401432448,1768209032815,-59786.12122386,0.00011596,2]
[401432449,1768209032856,-1382.20299255,0.00011596,2]
[401432450,1768209032872,-1014.31929586,0.00011596,2]
[401432451,1768209032889,-296.0765777,0.00011596,2]
[401432452,1768209032900,-3794.84900764,0.00011596,2]
[401432453,1768209032912,-5301.67567141,0.00011596,2]
[401432454,1768209032923,-50214.98548762,0.00011596,2]
[401432455,1768209032934,-23164.41028969,0.00011596,2]
[401432456,1768209032975,-1931.43592063,0.00011596,2]
[401432457,1768209032986,-796.75417242,0.00011596,2]
[401432458,1768209032998,-902.96340192,0.00011596,2]
[401432459,1768209035142,-259.07070953,0.00011596,2]
[401432475,1768209037716,-272.67071473,0.00011596,2]
[401432479,1768209038294,-821.0,0.00011596,2]
[401432480,1768209038407,-999.0,0.00011596,2]
[401432481,1768209038418,-9573.10872075,0.00011596,2]
[401432482,1768209038430,-904.82,0.00011596,2]
[401432483,1768209038464,-62.98763311,0.00011596,2]
[401432484,1768209038476,-3619.89584989,0.00011596,2]
[401432485,1768209038493,-15972.94042967,0.00011596,2]
[401432486,1768209038504,-169504.25225104,0.00011596,2]
[401432487,1768209038539,-10035.0838568,0.00011596,2]
[401432644,1768209040422,-87136.16404517,0.00011596,2]
[401432645,1768209040432,-195.0,0.00011646,2]
[401432646,1768209040443,-1200.0,0.00011695,2]
[401432647,1768209040453,-22609.93880413,0.00011696,2]
[401432648,1768209040462,-1000.0,0.00011696,2]
[401432649,1768209040472,-336.60813729,0.00011702,2]
[401432650,1768209040482,-195.0,0.00011702,2]
[401432651,1768209040492,-250.0,0.00011708,2]
[401432652,1768209040502,-167.42,0.00012157,2]
[401432653,1768209040512,-253.56,0.00012157,2]
[401432654,1768209040522,-1210.21,0.00012157,2]
[401432655,1768209040531,-133836.85,0.00012157,2]
[401432656,1768209040541,-1852.42,0.00012157,2]
[401432657,1768209040551,-4030.37,0.00012157,2]
[401432658,1768209040560,-200.0,0.00012157,2]
[401432659,1768209040570,-150.0,0.00012157,2]
[401432660,1768209040580,-1000.0,0.00012157,2]
[401432661,1768209040589,-1950.1,0.00012157,2]
[401432662,1768209040599,-1433.4,0.00012157,2]
[401432663,1768209040608,-10056.09,0.00012157,2]
[401432664,1768209040617,-369.79,0.00012157,2]
[401432665,1768209040627,-13017.22,0.00012157,2]
[401432666,1768209040637,-500.0,0.00012157,2]
[401432667,1768209040646,-433.79,0.00012157,2]
[401432668,1768209040656,-14815.88279568,0.00012251,2]
[401432669,1768209040666,-19381.95,0.00012254,2]
[401432670,1768209040675,-10972.86798705,0.00012296,2]
[401432671,1768209040684,-177.01205422,0.00012497,2]
[401432672,1768209040694,-698.02865483,0.00012511,2]
[401432673,1768209040704,-166.67,0.00012521,2]
[401432674,1768209040713,-150.99,0.00012521,2]
[401432675,1768209040723,-9999.99,0.00012521,2]
[401432676,1768209040732,-999.99,0.00012521,2]
[401432677,1768209040742,-18008.13,0.00012521,2]
[401432678,1768209040752,-8697.06,0.00012521,2]
[401432679,1768209040761,-150.99,0.00012521,2]
[401432680,1768209040771,-9999.99,0.00012521,2]
[401432681,1768209040780,-5613.5539179,0.00012521,2]
[401432694,1768209043918,-1724.497,0.00012521,2]
[401432696,1768209043929,-636.57655397,0.00012521,2]
[401432698,1768209043940,-9104.85252813,0.00012521,2]
[401432700,1768209043949,-9999.99,0.00012521,2]
[401432702,1768209043959,-4999.99,0.00012521,2]
[401432704,1768209043967,-299.99,0.00012521,2]
[401432706,1768209043977,-1014.60206525,0.00012584,2]
[401432707,1768209043992,-1880.72844606,0.00012584,2]
[401432708,1768209044002,-161.58692255,0.00012647,2]
[401432709,1768209044011,-195.0,0.00012756,2]
[401432710,1768209044020,-255.0,0.00012771,2]
[401432711,1768209044030,-1680.0,0.00012865,2]
[401432712,1768209044040,-500.0,0.00012866,2]
[401432713,1768209044050,-300.0,0.00012866,2]
[401432714,1768209044060,-250.0,0.00012866,2]
[401432715,1768209044071,-195.0,0.00012866,2]
[401432716,1768209044081,-250.0,0.00012866,2]
[401432717,1768209044092,-300.0,0.00012866,2]
[401432718,1768209044101,-195.0,0.00012866,2]
[401432719,1768209044111,-14815.88279568,0.00012957,2]
[401432720,1768209044124,-10972.86798705,0.00012997,2]
[401432721,1768209044135,-285.0,0.00013064,2]
[401432722,1768209044145,-500.0,0.0001314,2]
[401432723,1768209044154,-359.57914319,0.00013361,2]
[401432724,1768209044164,-332.7592684,0.00013361,2]
[401432725,1768209044174,-998.0,0.00013361,2]
[401432726,1768209044183,-177.01205422,0.00013397,2]
[401432727,1768209044193,-3240.0,0.00013425,2]
[401432728,1768209044204,-166.67,0.00013555,2]
[401432729,1768209044213,-14815.88279568,0.00013663,2]
[401432730,1768209044222,-1000.0,0.00013676,2]
[401432731,1768209044232,-1433.4,0.00013676,2]
[401432732,1768209044241,-161.58692255,0.00013697,2]
[401432733,1768209044251,-10972.86798705,0.00013697,2]
[401432734,1768209044262,-356.46360209,0.00013698,2]
[401432735,1768209044271,-500.0,0.00013698,2]
[401432736,1768209044282,-509.50574001,0.00013698,2]
[401432737,1768209044293,-500.0,0.00013698,2]
[401432738,1768209044303,-500.0,0.00013698,2]
[401432739,1768209044313,-500.0,0.00013698,2]
[401432740,1768209044323,-500.0,0.00013698,2]
[401432741,1768209044334,-522.22729333,0.00013698,2]
[401432742,1768209044343,-507.73004524,0.00013698,2]
[401432743,1768209044352,-500.0,0.00013698,2]
[401432744,1768209044363,-500.0,0.00013698,2]
[401432745,1768209044373,-540.03623195,0.00013698,2]
[401432746,1768209044383,-500.0,0.00013698,2]
[401432747,1768209044394,-500.0,0.00013698,2]
[401432748,1768209044404,-500.0,0.00013698,2]
[401432749,1768209044414,-500.0,0.00013698,2]
[401432750,1768209044424,-506.26751507,0.00013698,2]
[401432751,1768209044436,-341.67884985,0.00013698,2]
[401432752,1768209044446,-500.0,0.00013698,2]
[401432753,1768209044456,-500.0,0.00013698,2]
[401432754,1768209044465,-500.0,0.00013698,2]
[401432755,1768209044477,-500.0,0.00013698,2]
[401432756,1768209044486,-500.0,0.00013698,2]
[401432757,1768209044495,-602.58106697,0.00013698,2]
[401432758,1768209044504,-500.0,0.00013698,2]
[401432759,1768209044513,-500.0,0.00013698,2]
[401432760,1768209044522,-500.0,0.00013698,2]
[401432761,1768209044531,-500.0,0.00013698,2]
[401432762,1768209044540,-500.0,0.00013698,2]
[401432763,1768209044551,-500.0,0.00013698,2]
[401432764,1768209044560,-500.0,0.00013698,2]
[401432765,1768209044570,-500.0,0.00013698,2]
[401432766,1768209044582,-500.0,0.00013698,2]
[401432767,1768209044591,-500.0,0.00013698,2]
[401432768,1768209044601,-330.30276578,0.00013698,2]
[401432769,1768209044612,-500.0,0.00013698,2]
[401432770,1768209044621,-500.0,0.00013698,2]
[401432771,1768209044631,-500.0,0.00013698,2]
[401432772,1768209044641,-500.0,0.00013698,2]
[401432773,1768209044650,-500.0,0.00013698,2]
[401432774,1768209044659,-500.0,0.00013698,2]
[401432775,1768209044669,-500.0,0.00013698,2]
[401432776,1768209044678,-503.23607538,0.00013698,2]
[401432777,1768209044689,-500.0,0.00013698,2]
[401432778,1768209044697,-500.0,0.00013698,2]
[401432779,1768209044707,-500.0,0.00013698,2]
[401432780,1768209044716,-500.0,0.00013698,2]
[401432781,1768209044726,-630.29424855,0.00013698,2]
[401432782,1768209044737,-500.0,0.00013698,2]
[401432783,1768209044747,-518.76755169,0.00013698,2]
[401432784,1768209044756,-500.0,0.00013698,2]
[401432785,1768209044765,-500.0,0.00013698,2]
[401432786,1768209044775,-500.0,0.00013698,2]
[401432787,1768209044785,-508.50378479,0.00013698,2]
[401432788,1768209044794,-500.0,0.00013698,2]
[401432789,1768209044804,-404.20947906,0.00013698,2]
[401432790,1768209044813,-512.2174814,0.00013698,2]
[401432791,1768209044823,-507.848456,0.00013698,2]
[401432792,1768209044834,-502.8163204,0.00013698,2]
[401432793,1768209044845,-545.57,0.00013698,2]
[401432794,1768209044854,-709.68,0.00013699,2]
[401432795,1768209044865,-200.0,0.00013699,2]
[401432796,1768209044875,-226.90542716,0.00013699,2]
[401432797,1768209044885,-433.0,0.00013941,2]
[401432798,1768209044896,-545.57,0.00013972,2]
[401432799,1768209044908,-500.0,0.0001411,2]
[401432800,1768209044919,-2351.0,0.00014151,2]
[401432801,1768209044929,-545.57,0.00014246,2]
[401432804,1768209044939,-177.01205422,0.00014298,2]
[401432806,1768209044948,-152.0,0.00014365,3]
[401432807,1768209044958,-10972.86798705,0.00014398,2]
[401432809,1768209044967,-526.37134529,0.00014453,2]
[401432811,1768209044976,-151.0,0.00014475,2]
[401432813,1768209044986,-151.0,0.00014475,2]
[401432814,1768209044996,-151.0,0.00014475,2]
[401432815,1768209045005,-151.0,0.00014475,2]
[401432816,1768209045015,-151.0,0.00014475,2]
[401432817,1768209045025,-1262.0,0.00014475,2]
[401432818,1768209045035,-151.0,0.00014475,2]
[401432819,1768209045044,-151.0,0.00014475,2]
[401432820,1768209045053,-1262.0,0.00014475,2]
[401432821,1768209045063,-151.0,0.00014475,2]
[401432822,1768209045073,-151.0,0.00014475,2]
[401432823,1768209045083,-985.36928488,0.00014475,2]
[401432824,1768209045092,-151.0,0.00014475,2]
[401432825,1768209045102,-151.0,0.00014475,2]
[401432826,1768209045111,-151.0,0.00014475,2]
[401432827,1768209045122,-151.0,0.00014475,2]
[401432828,1768209045135,-151.0,0.00014475,2]
[401432829,1768209045144,-151.0,0.00014475,2]
[401432830,1768209045153,-151.0,0.00014475,2]
[401432831,1768209045162,-151.0,0.00014475,2]
[401432832,1768209045174,-151.0,0.00014475,2]
[401432833,1768209045182,-151.0,0.00014475,2]
[401432834,1768209045193,-151.0,0.00014475,2]
[401432835,1768209045203,-151.0,0.00014475,2]
[401432836,1768209045213,-265.0237075,0.00014475,2]
[401432837,1768209045223,-166.17004854,0.00014475,2]
[401432838,1768209045232,-158.20488255,0.00014475,2]
[401432839,1768209045241,-151.0,0.00014475,2]
[401432840,1768209045251,-152.61086967,0.00014475,2]
[401432841,1768209045261,-151.0,0.00014475,2]
[401432842,1768209045271,-151.0,0.00014475,2]
[401432843,1768209045280,-151.0,0.00014475,2]
[401432844,1768209045290,-151.0,0.00014475,2]
[401432845,1768209045299,-151.0,0.00014475,2]
[401432846,1768209045309,-151.0,0.00014475,2]
[401432847,1768209045318,-151.0,0.00014475,2]
[401432848,1768209045327,-151.0,0.00014475,2]
[401432849,1768209045336,-151.0,0.00014475,2]
[401432850,1768209045346,-151.0,0.00014475,2]
[401432851,1768209045355,-155.34893421,0.00014475,2]
[401432852,1768209045364,-151.0,0.00014475,2]
[401432853,1768209045373,-151.0,0.00014475,2]
[401432854,1768209045383,-151.0,0.00014475,2]
[401432855,1768209045392,-151.0,0.00014475,2]
[401432856,1768209045403,-151.0,0.00014475,2]
[401432857,1768209045413,-151.0,0.00014475,2]
[401432858,1768209045422,-151.0,0.00014475,2]
[401432859,1768209045431,-151.0,0.00014475,2]
[401432860,1768209045440,-151.0,0.00014475,2]
[401432861,1768209045450,-151.0,0.00014475,2]
[401432862,1768209045459,-151.0,0.00014475,2]
[401432863,1768209045468,-151.0,0.00014475,2]
[401432864,1768209045477,-151.0,0.00014475,2]
[401432865,1768209045487,-153.32856612,0.00014475,2]
[401432866,1768209045496,-545.57,0.0001452,2]
[401432867,1768209045506,-167.42,0.00014588,2]
[401432868,1768209045516,-166.67,0.00014588,2]
[401432869,1768209045525,-161.58692255,0.00014748,2]
[401432870,1768209045534,-545.57,0.00014794,2]
[401432871,1768209045544,-151.0,0.00015011,2]
[401432872,1768209045553,-151.0,0.00015011,2]
[401432873,1768209045564,-545.60526628,0.00015068,2]
[401432874,1768209045573,-10972.86798705,0.00015098,2]
[401432875,1768209045583,-1000.0,0.00015196,2]